Cogmind - Beta 9.6 @@@ ROGUE MODE // 2020.06.28 @ 14:09:16 Player: Teratos Result: Destroyed by Y-45 Defender with Beam Rifle Performance ------------- Evolutions (1) 500 Regions Visited (2) 400 Robots Destroyed (23) 115 Value Destroyed (471) 471 Prototype IDs (0) 0 Alien Tech Used (0) 0 Bonus (0) 0 TOTAL SCORE: 1486 Bonus ------- None Cogmind --------- Core Integrity 0/400 Matter 289/300 Energy 93/100 System Corruption 0% Temperature Cool (9) Movement Core (50) Location -9/Materials Parts ------- > --- POWER (1) -------- (None) > --- PROPULSION (4) --- (None) > --- UTILITY (2) ------ (None) > --- WEAPON (2) ------- Light Assault Rifle > --- INVENTORY (4) ---- (None) Peak State ------------ > --- POWER ------------ Light Ion Engine > --- PROPULSION ------- Light Treads Light Treads Light Treads Light Treads > --- UTILITY ---------- Heat Sink Heat Sink > --- WEAPON ----------- Heavy EM Pulse Gun Heavy Assault Rifle > --- INVENTORY -------- (None) [Rating: 11] Favorites ----------- Power Light Ion Engine Engine Light Ion Engine Propulsion Light Treads Treads Light Treads Flight Unit Flight Unit Utility Heat Sink Device Heat Sink Storage Small Storage Unit Protection Weapon Shielding Weapon Heavy EM Pulse Gun Energy Gun Heavy EM Pulse Gun Ballistic Gun Light Assault Rifle Build | -11 -10 -9 ------- Run | Scr Mat Mat Slots Evolved 2 | . . 2 Power . | . . . Propulsion 2 | . . 2 Utility . | . . . Weapon . | . . . Parts Attached 33 | 6 15 12 Power 4 | 1 1 2 Engine 4 | 1 1 2 Core . | . . . Reactor . | . . . Propulsion 9 | 2 3 4 Treads 6 | 2 . 4 Leg . | . . . Wheel . | . . . Hover . | . . . Flight 3 | . 3 . Utility 9 | 1 6 2 Device 5 | . 3 2 Storage 3 | 1 2 . Processor . | . . . Hackware . | . . . Protection 1 | . 1 . Artifact . | . . . Weapon 11 | 2 5 4 Energy Gun 3 | . 2 1 Energy Cannon . | . . . Ballistic Gun 8 | 2 3 3 Ballistic Cannon . | . . . Launcher . | . . . Special Weapon . | . . . Impact Weapon . | . . . Slashing Weapon . | . . . Piercing Weapon . | . . . Special Melee Weapon . | . . . Unidentified Prototypes . | . . . Parts Lost 16 | . . 16 Power 3 | . . 3 Propulsion 6 | . . 6 Utility 2 | . . 2 Weapon 5 | . . 5 Highest Loss Streak 10 | . . 10 Average Slot Usage (%) 73 | . 82 67 Engine 9 | . 14 6 Treads 18 | . 8 24 Flight 9 | . 17 4 Device 10 | . 7 12 Storage 2 | . 6 . Energy Gun 9 | . 8 10 Ballistic Gun 11 | . 17 7 Naked Turns . | . . . Heaviest Build 12 | 12 12 11 Greatest Support 80 | 40 40 80 Greatest Overweight (x) 3 | . 3 3 Average Overweight (x) . | . . . Largest Inventory Capacity 6 | 6 6 4 Average Capacity 4 | 5 5 4 Most Carried 1 | . 1 1 Average Carried . | . . . Final Capacity 6 | 6 4 4 Final Carried 1 | . 1 . Class Distribution -------------------- 65% | Scavenger-Mutant 34% | Mutant Dominant Class ---------------- Mutant | -10/Materials Scavenger-Mutant | -9/Materials Resources | -11 -10 -9 ----------- Run | Scr Mat Mat Matter Collected 615 | 132 326 157 Remotely . | . . . Salvage Created 771 | . 316 455 Parts 57 | . 19 38 Haulers Intercepted . | . . . Recyclers Shooed 1 | . . 1 Parts Field Recycled . | . . . Retrieved Matter . | . . . Parts Self-Destructed . | . . . Prevented . | . . . Kills | -11 -10 -9 ------- Run | Scr Mat Mat Combat Hostiles Destroyed 15 | . 9 6 Guns 13 | . 8 5 Classes Destroyed 9 | . 3 6 Worker 2 | . . 2 Builder 2 | . . 2 Tunneler 1 | . . 1 Recycler 1 | . . 1 Watcher 2 | . 1 1 Swarmer 5 | . 3 2 Grunt 7 | . 6 1 Brawler 1 | . . 1 Sentry 2 | . . 2 Best Kill Streak 6 | . 6 4 Combat Bots Only 6 | . 6 4 Max Kills in Single Turn 1 | . 1 1 Gunslinging . | . . . Exploded . | . . . Melee . | . . . Uniques/NPCs Destroyed . | . . . Combat | -11 -10 -9 -------- Run | Scr Mat Mat Damage Taken 1733 | . 294 1439 Core 484 | . 72 412 Absorbed by Shields . | . . . Core Remaining (%) 85 | 100 71 . Volleys Fired 68 | . 26 42 Largest 2 | . 2 2 Hottest 100 | . 100 100 Shots Fired 113 | . 52 61 Gun 113 | . 52 61 Cannon . | . . . Launcher . | . . . Special . | . . . Kinetic 65 | . 36 29 Thermal 25 | . 16 9 Explosive . | . . . Electromagnetic 23 | . . 23 Robot Hit Streak 17 | . 17 10 Robot Miss Streak 5 | . 3 5 Penetration Max . | . . . Secondary Targets 3 | . 2 1 Max Gunslinging Chain 1 | . 1 1 Shots Hit Robots 78 | . 36 42 Core Hits 36 | . 15 21 Critical Hits . | . . . Critical Kills . | . . . Critical Parts Destroyed . | . . . Melee Attacks . | . . . Impact . | . . . Slashing . | . . . Piercing . | . . . Sneak Attacks . | . . . Combat Hostiles . | . . . Follow-up Attacks . | . . . Damage Inflicted 1047 | . 379 668 Guns 1004 | . 379 625 Cannons . | . . . Explosions 22 | . . 22 Melee . | . . . Ramming 21 | . . 21 Kinetic 444 | . 182 262 Thermal 308 | . 197 111 Explosive . | . . . Electromagnetic 274 | . . 274 Impact . | . . . Slashing . | . . . Piercing . | . . . Highest Corruption . | . . . Average Corruption . | . . . Corruption Purged . | . . . Overload Shots . | . . . Overflow Damage . | . . . Projectiles . | . . . Explosions . | . . . Melee . | . . . Knockbacks . | . . . Impact . | . . . Kinetic . | . . . Secondary . | . . . Self-Inflicted Damage 6 | . . 6 Shots 1 | . . 1 Rammed 19 | . . 19 Targets Rammed 20 | . . 20 Kicked . | . . . Crushed 1 | . . 1 Highest Temperature 168 | . 168 45 Average Temperature 51 | . 87 15 Received Heat Transfer 480 | . 66 414 Siege Activations . | . . . Robots Corrupted 1 | . . 1 Combat Hostiles 1 | . . 1 Parts Fried . | . . . Impact Corruptions . | . . . Robots Melted 1 | . 1 . Combat Hostiles 1 | . 1 . Parts Melted 3 | . 3 . Heat Transferred 851 | . 592 259 Parts Sabotaged . | . . . Parts Stolen . | . . . Parts Stripped . | . . . Power Chain Reactions 1 | . . 1 Missiles Intercepted . | . . . Alert | -11 -10 -9 ------- Run | Scr Mat Mat Peak Influence 277 | . 252 277 Average Influence 154 | . 138 185 Maximum Alert Level 1 | . 1 1 Low Security (%) 56 | 100 77 36 Level 1 43 | . 22 63 Level 2 . | . . . Level 3 . | . . . Level 4 . | . . . Level 5 . | . . . High Security . | . . . Max Security . | . . . Squads Dispatched 2 | . 2 . Investigation 2 | . 2 . Extermination . | . . . Reinforcement . | . . . Assault . | . . . Garrison . | . . . Intercept . | . . . Construction Impeded . | . . . Haulers Reinforced . | . . . Stealth | -11 -10 -9 --------- Run | Scr Mat Mat Distress Signals . | . . . Communications Jammed . | . . . Distress Signals . | . . . Times Spotted 27 | . 11 16 Peak Tracking Total 6 | . 5 6 Tactical Retreats 3 | . . 3 Traps | -11 -10 -9 ------- Run | Scr Mat Mat Traps Triggered 2 | . 2 . Indirectly . | . . . Trap Hack Attempts . | . . . Triggered . | . . . Disarmed . | . . . Reprogrammed . | . . . Reused . | . . . Traps Extracted . | . . . Installed . | . . . Triggered . | . . . Machines | -11 -10 -9 ---------- Run | Scr Mat Mat Machines Disabled . | . . . Max in Single Turn . | . . . Machines Sabotaged . | . . . Garrisons Compromised . | . . . Overloaded Fab Kills . | . . . Fab Network Shutdowns . | . . . Hacking | -11 -10 -9 --------- Run | Scr Mat Mat Machines Accessed 1 | . 1 . Terminals 1 | . 1 . Fabricators . | . . . Repair Stations . | . . . Recycling Units . | . . . Scanalyzers . | . . . Garrison Access . | . . . Total Hacks 3 | . 3 . Successful 1 | . 1 . Failed 2 | . 2 . Catastrophic . | . . . Database Lockouts . | . . . Manual . | . . . Terminals 3 | . 3 . Fabricators . | . . . Repair Stations . | . . . Recycling Units . | . . . Scanalyzers . | . . . Garrison Access . | . . . Terminal Hacks 1 | . 1 . Zone Layout 1 | . 1 . Fabricator Hacks . | . . . Repair Station Hacks . | . . . Recycling Unit Hacks . | . . . Scanalyzer . | . . . Garrison Access Hacks . | . . . Unauthorized Hacks . | . . . Terminals . | . . . Fabricators . | . . . Repair Stations . | . . . Recycling Units . | . . . Scanalyzers . | . . . Garrison Access . | . . . Data Cores Recovered . | . . . Used . | . . . Hacking Detections 1 | . 1 . Full Trace Events 1 | . 1 . Feedback Events . | . . . Feedback Blocked . | . . . Robot Schematics Acquired . | . . . Robots Built . | . . . Matter . | . . . Time . | . . . Total Robot Build Rating . | . . . Part Schematics Acquired . | . . . Parts Built . | . . . Matter . | . . . Time . | . . . Total Part Build Rating . | . . . Parts Repaired . | . . . Time . | . . . Parts Recycled . | . . . Recycled Matter . | . . . Retrieved Matter . | . . . Retrieved Components . | . . . Parts Scanalyzed . | . . . Part Schematics Acquired . | . . . Parts Damaged . | . . . Bothacking | -11 -10 -9 ------------ Run | Scr Mat Mat Used RIF Installer . | . . . Robots Hacked . | . . . Non-combat . | . . . Combat . | . . . Robot Hacks Applied . | . . . Relay Couplers Released . | . . . Robots Rewired . | . . . Allies Hacked . | . . . Hacks Repelled . | . . . Allies | -11 -10 -9 -------- Run | Scr Mat Mat Total Allies . | . . . Largest Group . | . . . Highest-Rated Group . | . . . Highest-Rated Ally . | . . . Total Orders . | . . . Ally Attacks . | . . . Total Damage . | . . . Kills . | . . . Allies Corrupted . | . . . Allies Melted . | . . . Intel | -11 -10 -9 ------- Run | Scr Mat Mat Robot Analysis Total . | . . . Derelict Logs Recovered . | . . . Drone Launches . | . . . Drone Recoveries . | . . . Exploration | -11 -10 -9 ------------- Run | Scr Mat Mat Turns Passed 759 | 55 287 417 Spaces Moved 508 | 30 290 188 Core 22 | 1 2 19 Treads 151 | 29 28 94 Legs . | . . . Wheels . | . . . Hover . | . . . Flight 335 | . 260 75 Fastest Speed 37 | 50 37 37 Average Speed 84 | 156 60 109 Slowest Speed 200 | 160 200 200 Overloaded Moves . | . . . Propulsion Burnouts . | . . . Robots Hopped 1 | . . 1 Cave-ins Triggered . | . . . Exploration Rate (%) 20 | 3 44 13 Regions Visited 2 Branch Regions . Pre-discovered Areas . | . . . Known Exits Taken . | . . . Unknown Exits Taken 2 | 1 1 . Scrap Searched . | . . . Spaces Dug . | . . . Terrain Destroyed . | . . . Melee . | . . . Projectile . | . . . AOE . | . . . Actions | -11 -10 -9 --------- Run | Scr Mat Mat Total 706 | 35 349 322 Wait 68 | . 8 60 Move 504 | 29 289 186 Hop 1 | . . 1 Pick Up . | . . . Fast Attach 30 | 6 14 10 Attach 2 | . . 2 Detach 1 | . . 1 Swap 1 | . 1 . Drop 11 | . 11 . Fire 68 | . 26 42 Melee . | . . . Ram . | . . . Kick . | . . . Crush 20 | . . 20 Escape Stasis . | . . . Rewire . | . . . Trap . | . . . Miscellaneous . | . . . Route ------- -11/Scrapyard -10/Materials (discovered 3 exits: [*Mat x2] / [Min]) -9/Materials History --------- Turn | Location | Event 5 | -11/Scrapyard | Discovered new exit (range 16) 56 | -11/Scrapyard | Entered Materials 61 | -10/Materials | Discovered new exit (range 9) 236 | -10/Materials | Discovered new exit (range 15) 337 | -10/Materials | Discovered new exit (range 16) 343 | -10/Materials | Entered another Materials area 343 | -9/Materials | Evolved 2 slots: Propulsion x2 465 | -9/Materials | Lost 3 parts (1p2n) 720 | -9/Materials | Core integrity fell below 50% 748 | -9/Materials | Core integrity fell below 20% 760 | -9/Materials | Destroyed by Y-45 Defender with Beam Rifle Last Messages --------------- 00735_ Slammed into Y-45 Defender. 00737_ Lgt. Treads destroyed. 00738_ Slammed into Y-45 Defender. 00739_ Lgt. Treads destroyed. 00740_ Slammed into Y-45 Defender. 00740_ Heat Sink destroyed. 00743_ Slammed into Y-45 Defender. 00743_ Lgt. Treads destroyed. 00746_ Acquired Lgt. Assault Rifle. 00748_ S-10 Pest destroyed. 00749_ Acquired 11 matter. 00751_ Acquired 1 matter. 00751_ K-01 Serf collects debris. 00752_ Acquired 1 matter. 00754_ K-01 Serf collects debris. 00754_ Heat Sink destroyed. 00756_ Acquired 1 matter. 00757_ Lgt. Assault Rifle destroyed. 00757_ K-01 Serf collects debris. 00757_ Acquired Lgt. Assault Rifle. Map ----- +----------------------------------------------------+ | ??????????????????? ????# #???# #??? | | ????????????????? ??????# #???#""" #??? | | ???????????????? ????????#= % |#???#""" #??? | | ?????????????????????????#! =%#???#""" #??? | | ?????????????????????????# =#???#""" !#??? | | ?????????????????????????# ! !#???# #??? | | ?????????????????????????# ==#???# #??? | | ????????????????????????## !%!##??# #??? | | ????????????????????????# = #??# #??? | | ????????????????????????# #######+#####??? | | ????????????????????????# #????? | | ????????????????????????# #????? | | ????????????????????????# #????? | | ????????????????????????# % ##+########????? | | ????????????????????????# %% # #?????? | | ????????????????????????###%! ### #?????? | | ?????????????#????????????#%k #?# """ #?????? | | ?????????????#!!??????????# #?# """"" #?????? | | ?????????????#!!*?????????# #?# """"" #?????? | | ?????????????# ??????### ### """"" #?????? | | ??????????????# ?????# # """ #?????? | | ??????????????# #####= # #?????? | | ???????????#### %Y%% # #?????? | | ????????+ %Y%*% ##########?????? | | ????????????### %%%%%* #??????????????? | | ??????????????# %#@= #??????????????? | | ??????????????### # #??????????????? | | ????????????????# ^ ###### ##??????????????? | | ????????????????# ^ #????? #???????????????? | | ??????????????? #????? #???????????????? | | ????????????? ##+### #????? #???????????????? | | ???????????? ??????##+##????? #???????????????? | | ???????????# ????????????????? ???????????????? | | ??????????????????????????????+#???????????????? | | ???????????????????????????????????????????????? | | ???????????????????????????????????????????????? | | ???????????????????????????????????????????????? | | ???????????????????????????????????????????????? | | ???????????????????????????????????????????????? | | ???????????????????????????????????????????????? | | ???????????????????????????????????????????????? | | ???????????????????????????????????????????????? | | ???????????????????????????????????????????????? | | ???????????????????????????????????????????????? | | ???????????????????????????????????????????????? | | ???????????????????????????????????????????????? | | ???????????????????????????????????????????????? | | ???????????????????????????????????????????????? | | ???????????????????????????????????????????????? | | ???????????????????????????????????????????????? | +----------------------------------------------------+ Best States ------------- Heat Dissipation 48 Energy Generation 10 Energy Capacity 250 Matter Stores 300 Matter Capacity 300 Sight Range 16 Robot Scan Range 10 Terrain Scan Density 10 Weapon Shielding 33 Evasion (%) 62 Recoil Reduction 4 Item Schematics ----------------- None Robot Schematics ------------------ None Fabricated ------------ Nothing Alien Tech Used ----------------- None Achievements -------------- None Challenges ------------ None Game ------ Seed BladeAlphaWheel Manual? 0 Play Time 00:12:47 Cumulative 44.5 hours Start 2020.06.28 @ 13:57:07 End 2020.06.28 @ 14:09:16 Sessions 1 Manual Loads 0 Difficulty Rogue Special Mode None Game No. 102 Rogue 102 Adventurer 0 Explorer 0 Win Type - Total 0 Types 0/0/0/0/0/0/0 Lore% 25 Gallery% 28 Achievement% 24 Wizard Run 0 Options --------- ASCII 0 Keyboard 0 Movement Numpad Keybinds 0 Fullscreen 1 Font 18/SmallcapsGlow Map View 76x50 Tactical HUD 1 Map Filters NONE Filters NONE Steam 1 RUN: 9873abb0-8a9b-42a5-8c62-c0b37243b5cc